bitfinex/quotes_ETHUSD_20250916
["timestamp","ask_amount","ask_price","bid_price","bid_amount"]
[1758027424168,0.7602,4508.3,4508.0,2.35166069]
[1758027424465,0.002,4508.4,4508.1,2.21822775]
[1758027425295,0.46,4508.4,4508.1,2.21822775]
[1758027425906,0.3022,4508.2,4508.0,0.1112]
[1758027426201,0.3022,4508.2,4508.1,14.5]
[1758027426401,1.1957,4508.2,4508.1,14.5]
[1758027427386,0.002,4508.4,4508.0,2.32946577]
[1758027427583,0.458,4508.3,4508.0,2.32946577]
[1758027427782,0.458,4508.3,4508.1,16.71822289]
[1758027427985,0.002,4508.4,4508.1,16.71822289]
[1758027428196,0.002,4508.4,4508.1,14.5]
[1758027428398,0.46,4508.4,4508.1,14.5]
[1758027428702,0.3022,4508.2,4508.1,14.5]
[1758027428907,0.7602,4508.2,4508.0,0.1112]
[1758027429066,0.7602,4508.2,4508.0,2.32943721]
[1758027429488,0.7602,4508.2,4508.1,14.5]
[1758027429695,0.7602,4508.2,4508.1,16.7182294]
[1758027429863,0.7602,4508.2,4508.1,14.5]
[1758027430059,0.7602,4508.2,4508.1,14.5008]
[1758027430689,0.7602,4508.2,4508.1,0.0008]
[1758027432078,1.1957,4508.2,4508.1,0.0008]
[1758027434495,1.1949,4508.2,4508.1,0.0008]
[1758027435097,1.1949,4508.2,4508.1,14.5008]
[1758027435479,0.7594,4508.2,4508.1,16.7190294]
[1758027435682,0.7594,4508.2,4508.1,14.5008]
[1758027436697,0.46,4508.4,4508.1,14.5008]
[1758027437080,0.458,4508.3,4508.1,14.5008]
[1758027437493,0.458,4508.3,4508.1,16.71902106]
[1758027437692,0.002,4508.4,4508.2,2.2181802]
[1758027438012,0.002,4508.4,4508.3,2.24031231]
[1758027438184,0.0012,4508.4,4508.3,2.24031231]
[1758027438373,0.0012,4508.4,4508.3,17.012631]
[1758027439109,0.0012,4508.4,4508.3,14.7945]
[1758027439404,1.1969,4508.4,4508.3,14.5]
[1758027440221,1.1969,4508.4,4508.3,14.5008]
[1758027443688,0.7614,4508.4,4508.3,14.5008]
[1758027444220,0.0012,4508.4,4508.3,14.5008]
[1758027445208,0.0012,4508.4,4508.3,14.7911]
[1758027448300,0.0012,4508.4,4508.3,14.5008]
[1758027453317,0.0012,4508.4,4508.3,14.7911]
[1758027454433,0.0012,4508.4,4508.3,14.5008]
[1758027455425,0.0012,4508.4,4508.3,14.7911]
[1758027456844,0.0012,4508.4,4508.3,14.5008]
[1758027459849,0.0012,4508.4,4508.3,17.753931]
[1758027463466,0.0004,4508.4,4508.3,17.753931]
[1758027464235,0.0004,4508.4,4508.3,17.576431]
[1758027465935,0.0004,4508.4,4508.3,17.119631]
[1758027466835,0.0004,4508.4,4508.3,14.9015]
[1758027467169,0.0004,4508.4,4508.3,14.6112]
[1758027467349,0.0004,4508.4,4508.3,16.829331]
[1758027468166,0.0004,4508.4,4508.3,17.119631]
[1758027469742,0.0004,4508.4,4508.3,17.753931]
[1758027471161,0.0004,4508.4,4508.3,17.84280162]
[1758027472445,0.0016,4508.5,4508.4,2.2180818]
[1758027472647,0.0016,4508.5,4508.4,2.2188818]
[1758027472846,0.0016,4508.5,4508.4,2.5091818]
[1758027473669,0.0016,4508.5,4508.4,2.59805242]
[1758027474247,0.0016,4508.5,4508.4,17.09805242]
[1758027475872,0.0016,4508.5,4508.4,16.7188818]
[1758027475873,0.8127,4508.5,4508.4,16.7188818]
[1758027476238,0.0016,4508.5,4508.4,16.7188818]
[1758027476642,0.0016,4508.5,4508.4,21.95674854]
[1758027477573,0.0016,4508.5,4508.4,22.04561916]
[1758027479462,0.0016,4508.5,4508.4,21.86811916]
[1758027480383,0.0016,4508.5,4508.4,24.86811916]
[1758027480562,0.0016,4508.5,4508.4,25.04561916]
[1758027480980,0.0016,4508.5,4508.4,24.86811916]
[1758027481348,0.0016,4508.5,4508.4,24.41361916]
[1758027482992,0.0016,4508.5,4508.4,20.11425242]
[1758027483366,0.0016,4508.5,4508.4,20.56405242]
[1758027483767,0.0016,4508.5,4508.4,20.74155242]
[1758027484889,0.0016,4508.5,4508.4,25.04091916]
[1758027487975,0.0016,4508.5,4508.4,24.86341916]
[1758027488690,0.0008,4508.5,4508.4,24.86341916]
[1758027490703,0.0008,4508.5,4508.4,24.41361916]
[1758027492402,0.7537,4508.5,4508.4,19.80775242]
[1758027492593,1.1933,4508.5,4508.4,19.80775242]
[1758027494681,1.1925,4508.5,4508.4,19.80775242]
[1758027494877,0.002,4508.7,4508.5,5.2180326]
[1758027495197,0.4695,4508.7,4508.5,2.2188326]
[1758027495400,0.4695,4508.7,4508.6,0.1104]
[1758027495608,0.4695,4508.7,4508.6,20.2958834]
[1758027496503,0.002,4508.7,4508.6,20.2958834]
[1758027500387,0.2874,4508.7,4508.6,20.2958834]
[1758027500606,1.1945,4508.7,4508.6,20.2958834]
[1758027503117,0.727,4508.7,4508.6,20.2958834]
[1758027503684,1.1945,4508.7,4508.6,20.2958834]
[1758027505122,1.2099,4508.7,4508.6,20.2958834]
[1758027505322,1.2099,4508.7,4508.6,20.2966834]
[1758027506103,1.2099,4508.7,4508.6,5.7966834]
[1758027506503,1.2099,4508.7,4508.6,20.2966834]
[1758027506815,1.2099,4508.7,4508.6,5.7966834]
[1758027508196,1.2099,4508.7,4508.6,20.2966834]
[1758027513109,0.002,4508.7,4508.6,20.5952834]
[1758027513802,0.0012,4508.7,4508.6,20.2966834]
[1758027514003,0.7813,4508.7,4508.6,20.2966834]
[1758027514214,1.2091,4508.7,4508.6,20.2966834]
[1758027516847,1.2083,4508.7,4508.6,20.2966834]
[1758027517344,0.0004,4508.7,4508.6,20.5952834]
[1758027517506,0.0004,4508.7,4508.6,20.2966834]
[1758027517704,0.2856,4508.7,4508.6,20.2966834]
[1758027517943,0.7805,4508.7,4508.6,20.2966834]
[1758027518107,0.0004,4508.7,4508.6,20.2966834]
[1758027518509,0.4953,4508.7,4508.6,20.2966834]
[1758027518709,0.7805,4508.7,4508.6,20.2966834]
[1758027519449,0.7805,4508.7,4508.6,5.7966834]
[1758027519950,1.2083,4508.7,4508.6,20.2966834]
[1758027522571,0.7805,4508.7,4508.6,20.2966834]
[1758027526198,1.2083,4508.7,4508.6,20.2966834]
[1758027527076,0.7805,4508.7,4508.6,20.2966834]
[1758027528287,1.2083,4508.7,4508.6,20.2966834]
[1758027529298,0.7805,4508.7,4508.6,20.2966834]
[1758027529500,0.7805,4508.7,4508.6,20.2976834]
[1758027531374,0.2856,4508.7,4508.6,20.2976834]
[1758027532001,0.7805,4508.7,4508.6,20.2976834]
[1758027538922,0.7797,4508.7,4508.6,20.2976834]
[1758027539091,0.7789,4508.7,4508.6,20.2976834]
[1758027539688,0.2978,4508.7,4508.6,20.2976834]
[1758027539900,1.2196,4508.7,4508.6,20.2976834]
[1758027540516,1.2196,4508.7,4508.6,17.2976834]
[1758027540972,1.2196,4508.7,4508.6,16.8301834]
[1758027541375,1.2196,4508.7,4508.6,14.6122]
[1758027541571,1.2196,4508.7,4508.6,0.1122]
[1758027542108,0.2978,4508.7,4508.6,14.6122]
[1758027542487,1.2196,4508.7,4508.6,14.6122]
[1758027547009,1.2216,4508.7,4508.6,14.6122]
[1758027548226,1.2216,4508.7,4508.6,0.1122]
[1758027551917,0.7916,4508.7,4508.6,0.1122]
[1758027552320,1.2216,4508.7,4508.6,0.1122]
[1758027552832,0.7916,4508.7,4508.6,0.1122]
[1758027553737,0.7916,4508.7,4508.6,14.6122]
[1758027555542,1.2216,4508.7,4508.6,14.6122]
[1758027557442,1.2216,4508.7,4508.6,0.1122]
[1758027558727,1.2216,4508.7,4508.6,0.0018]
[1758027560670,0.7916,4508.7,4508.6,0.0018]
[1758027561230,0.7908,4508.7,4508.6,0.0018]
[1758027564229,0.79,4508.7,4508.6,0.0018]
[1758027565450,1.2438,4508.7,4508.6,0.0018]
[1758027567360,0.002,4508.7,4508.6,0.0018]
[1758027568054,0.7662,4508.7,4508.6,0.0018]
[1758027568465,1.22,4508.7,4508.6,0.0018]
[1758027571367,0.4764,4508.7,4508.6,0.0018]
[1758027571553,0.7662,4508.7,4508.6,0.0018]
[1758027572069,1.22,4508.7,4508.6,0.0018]
[1758027573072,0.7662,4508.7,4508.6,0.0018]
[1758027574065,1.22,4508.7,4508.6,0.0018]
[1758027577195,3.78311629,4508.7,4508.6,0.0018]
[1758027577380,3.78311629,4508.7,4508.0,0.1114]
[1758027577381,2.2181802,4508.2,4508.0,0.1114]
[1758027577586,2.21842624,4507.7,4507.3,0.001]
[1758027577783,11.43875973,4507.7,4507.3,0.001]
[1758027577966,2.21847546,4507.6,4507.3,0.001]
[1758027578162,2.2185739,4507.4,4507.3,0.001]
[1758027578366,10.01530302,4507.4,4507.3,0.001]
[1758027578665,10.94350302,4507.4,4507.3,0.001]
[1758027578873,3.0,4507.2,4506.1,0.01]
[1758027579094,13.81672821,4506.4,4506.1,0.01]
[1758027579284,14.31462633,4506.4,4506.1,0.01]
[1758027579481,11.73599533,4506.4,4506.1,0.01]
[1758027579794,11.82495133,4506.4,4506.1,0.01]
[1758027579965,11.61685321,4506.4,4506.1,0.01]
[1758027580162,12.20843776,4506.4,4506.1,0.01]
[1758027580513,10.82485321,4506.4,4506.1,0.01]
[1758027580718,1.306956,4506.4,4506.1,0.01]
[1758027581063,3.52602221,4506.4,4506.1,0.01]
[1758027581881,0.853156,4506.4,4506.1,0.01]
[1758027582201,3.07222221,4506.4,4506.1,0.01]
[1758027582402,3.52602221,4506.4,4506.1,0.01]
[1758027582627,1.306956,4506.4,4506.1,0.01]
[1758027583418,3.52602221,4506.4,4506.1,0.01]
[1758027583576,4.53040049,4506.4,4506.1,0.01]
[1758027583778,2.31133428,4506.4,4506.1,0.01]
[1758027584813,0.088956,4506.4,4506.3,0.2864]
[1758027585011,0.088956,4506.4,4506.3,0.7603]
[1758027585213,0.088956,4506.4,4506.3,0.2864]
[1758027585393,0.4744,4506.9,4506.3,0.2864]
[1758027585577,1.04458084,4506.8,4506.3,0.2864]
[1758027585785,0.3047,4506.9,4506.4,0.7686]
[1758027585982,2.21879368,4507.0,4506.3,0.001]
[1758027586220,2.21886926,4506.8,4506.3,0.001]
[1758027586438,0.2898,4506.4,4506.3,0.001]
[1758027586775,3.43706621,4506.4,4506.3,0.001]
[1758027586982,7.21065593,4506.4,4506.3,0.001]
[1758027587234,3.0111647,4506.2,4506.1,0.01]
[1758027587512,14.60887595,4506.1,4506.0,0.001]
[1758027587686,15.82687595,4506.1,4506.0,0.0018]
[1758027588515,11.52804495,4506.1,4506.0,0.0018]
[1758027588714,13.06909276,4506.1,4506.0,0.0018]
[1758027589392,13.06829276,4506.1,4506.0,0.0018]
[1758027589792,17.36712376,4506.1,4506.0,0.0018]
[1758027590595,13.06829276,4506.1,4506.0,0.0018]
[1758027594736,11.34889276,4506.1,4506.0,0.0018]
[1758027594929,0.08896787,4506.1,4506.0,0.2976]
[1758027595432,4.298831,4506.8,4506.0,1.0312]
[1758027595586,2.51667158,4506.4,4506.0,1.0312]
[1758027596626,2.21907158,4506.4,4506.0,1.0312]
[1758027596829,2.21896813,4506.6,4506.0,1.0312]
[1758027596989,2.21905979,4506.5,4506.0,1.0312]
[1758027597510,0.1104,4506.1,4506.0,1.0312]
[1758027597724,0.002,4506.4,4506.0,1.0312]
[1758027597923,0.002,4506.4,4506.1,0.2947]
[1758027597924,0.1104,4506.3,4506.1,0.2947]
[1758027598125,0.1104,4506.3,4506.2,1.0294]
[1758027598910,0.002,4506.4,4506.2,1.0294]
[1758027599119,0.002,4506.4,4506.3,0.766]
[1758027599521,0.002,4506.4,4506.3,1.07]
[1758027600540,0.002,4506.4,4506.3,0.304]
[1758027601306,0.002,4506.4,4506.3,3.28911546]
[1758027601606,0.002,4506.4,4506.3,3.98597584]
[1758027602953,0.002,4506.4,4506.3,18.48597584]
[1758027603153,0.002,4506.4,4506.3,18.46378469]
[1758027603956,0.002,4506.4,4506.3,15.6804]
[1758027604105,0.002,4506.4,4506.3,14.9144]
[1758027605113,0.002,4506.4,4506.3,0.4144]
[1758027605608,0.002,4506.4,4506.3,17.13351546]
[1758027606035,0.002,4506.4,4506.3,17.89951546]
[1758027606236,0.002,4506.4,4506.3,19.92261066]
[1758027606847,0.002,4506.4,4506.3,24.22144166]
[1758027607634,0.002,4506.4,4506.3,19.92261066]
[1758027608244,0.002,4506.4,4506.3,19.92341066]
[1758027609026,0.002,4506.4,4506.3,19.92431066]
[1758027609227,0.002,4506.4,4506.3,19.62961066]
[1758027610214,0.002,4506.4,4506.3,15.3874]
[1758027610719,0.002,4506.4,4506.3,17.60651546]
[1758027611135,0.002,4506.4,4506.3,15.3874]
[1758027611547,1.2266,4506.4,4506.3,14.973]
[1758027611715,1.2266,4506.4,4506.3,14.5008]
[1758027611917,0.002,4506.4,4506.3,14.5008]
[1758027612152,0.002,4506.4,4506.3,17.02391546]
[1758027612455,0.0012,4506.4,4506.3,17.02391546]
[1758027612864,0.0012,4506.4,4506.3,14.8048]
[1758027613076,0.0012,4506.4,4506.3,14.5008]
[1758027613236,1.2258,4506.4,4506.3,0.0008]
[1758027613432,1.34838,4506.4,4506.3,0.0008]
[1758027613784,3.56744621,4506.4,4506.3,0.0008]
[1758027614236,1.43732651,4506.4,4506.3,0.0008]
[1758027614440,0.87444651,4506.4,4506.3,0.0008]
[1758027614791,0.3145,4506.4,4506.3,0.0008]
[1758027615109,0.0004,4506.4,4506.3,0.0008]
[1758027615386,0.0004,4506.4,4506.3,0.3048]
[1758027615937,0.0004,4506.4,4506.3,0.0008]
[1758027616139,0.3145,4506.4,4506.3,0.0008]
[1758027616396,0.0004,4506.4,4506.3,0.3048]
[1758027617241,0.7548,4506.4,4506.3,14.5008]
[1758027617583,1.225,4506.4,4506.3,0.0008]
[1758027619148,0.3145,4506.4,4506.3,0.0008]
[1758027619581,0.7847,4506.4,4506.3,0.0008]
[1758027620073,0.3145,4506.4,4506.3,0.0008]
[1758027621354,0.7847,4506.4,4506.3,0.0008]
[1758027621572,1.225,4506.4,4506.3,0.0008]
[1758027622751,0.7847,4506.4,4506.3,0.0008]
[1758027623785,1.225,4506.4,4506.3,0.0008]
[1758027624563,0.7847,4506.4,4506.3,0.0008]
[1758027624964,1.2362,4506.4,4506.3,0.0008]
[1758027625971,0.7847,4506.4,4506.3,0.0008]
[1758027626286,0.3145,4506.4,4506.3,0.0008]
[1758027627087,0.8009,4506.4,4506.3,0.0008]
[1758027627505,0.0004,4506.4,4506.3,0.296]
[1758027627800,0.1108,4506.4,4506.3,0.296]
[1758027628006,0.1108,4506.4,4506.3,0.0008]
[1758027628213,0.896,4506.4,4506.3,0.0008]
[1758027628761,1.3475,4506.4,4506.3,0.0008]
[1758027632759,0.8611,4506.4,4506.3,0.0008]
[1758027632962,0.1108,4506.4,4506.3,0.0008]
[1758027633194,0.1108,4506.4,4506.3,0.296]
[1758027633394,0.0004,4506.4,4506.3,0.296]
[1758027633598,0.10969045,4506.6,4506.3,0.297]
[1758027636917,0.59609045,4506.6,4506.3,0.297]
[1758027639711,0.59609045,4506.6,4506.3,0.0018]
[1758027639918,0.59529045,4506.6,4506.3,0.0018]
[1758027642730,0.2988,4506.4,4506.3,0.0018]
[1758027642940,0.298,4506.4,4506.3,0.0018]
[1758027643094,3.80045732,4506.4,4506.3,0.0018]
[1758027643298,4.13291315,4506.4,4506.3,0.0018]
[1758027643495,7.13291315,4506.4,4506.3,0.0018]
[1758027643702,8.40366466,4506.4,4506.3,0.0018]
[1758027650048,7.80024476,4506.4,4506.3,0.0018]
[1758027651164,7.80224476,4506.4,4506.3,0.0018]
[1758027651966,7.9266356,4506.4,4506.3,0.0018]
[1758027653475,7.80224476,4506.4,4506.3,0.0018]
[1758027654399,7.01024476,4506.4,4506.3,0.0018]
[1758027654599,5.72685365,4506.4,4506.3,0.0018]
[1758027654804,5.72685365,4506.4,4506.3,0.3]
[1758027654805,0.20978744,4506.4,4506.3,0.3]
[1758027655006,0.002,4506.4,4506.3,1.0487]
[1758027655303,0.002,4506.4,4506.3,1.1591]
[1758027655497,0.002,4506.4,4506.3,4.45443666]
[1758027656006,0.002,4506.4,4506.3,2.2353212]
[1758027656173,0.002,4506.4,4506.3,4.45443666]
[1758027658904,0.002,4506.4,4506.3,2.2353212]
[1758027659093,0.002,4506.4,4506.3,4.45443666]
[1758027659309,0.002,4506.4,4506.3,2.2353212]
[1758027659830,0.002,4506.4,4506.3,4.45443666]
[1758027660671,0.002,4506.4,4506.3,2.2353212]
[1758027661088,0.002,4506.4,4506.3,4.45443666]
[1758027665048,0.0004,4506.4,4506.3,4.45443666]
[1758027669957,0.0004,4506.4,4506.3,18.95443666]
[1758027675320,0.0004,4506.4,4506.3,21.95443666]
[1758027679554,0.0004,4506.4,4506.3,21.94043666]
[1758027679691,0.0004,4506.4,4506.3,22.73243666]
[1758027679889,0.0004,4506.4,4506.3,23.20113666]
[1758027680712,0.0004,4506.4,4506.3,22.46643666]
[1758027680929,0.0004,4506.4,4506.3,23.20113666]
[1758027681627,0.0004,4506.4,4506.3,21.20573666]
[1758027681816,0.0004,4506.4,4506.3,20.90753666]
[1758027682633,0.0004,4506.4,4506.3,21.19563666]
[1758027682786,0.0004,4506.4,4506.3,20.90753666]
[1758027682986,1.245,4506.4,4506.3,20.90753666]
[1758027683502,0.7772,4506.4,4506.3,20.90753666]
[1758027683703,1.245,4506.4,4506.3,20.90753666]
[1758027683924,1.245,4506.4,4506.3,5.33131546]
[1758027686037,0.3085,4506.4,4506.3,5.33131546]
[1758027686194,0.0004,4506.4,4506.3,5.33131546]
[1758027687229,0.9001,4506.7,4506.6,2.21896773]
[1758027687392,0.4338,4506.7,4506.6,2.21896773]
[1758027687729,0.7399,4506.7,4506.6,16.71976773]
[1758027687933,1.2062,4506.7,4506.6,16.71976773]
[1758027689824,1.2062,4506.7,4506.6,21.02074013]
[1758027690230,0.002,4506.9,4506.7,2.21891849]
[1758027690419,0.002,4506.9,4506.8,2.21886926]
[1758027690913,0.3081,4506.9,4506.8,2.21886926]
[1758027691086,0.7744,4506.9,4506.8,16.71886926]
[1758027691288,1.2086,4506.9,4506.8,14.5]
[1758027691492,1.2086,4506.9,4506.8,16.71886926]
[1758027692494,0.002,4506.9,4506.8,16.71886926]
[1758027692694,0.002,4506.9,4506.8,17.02016926]
[1758027692901,0.002,4506.9,4506.8,18.74372414]
[1758027693090,0.002,4506.9,4506.8,18.44242414]
[1758027694437,0.002,4506.9,4506.8,18.74372414]
[1758027694816,0.002,4506.9,4506.8,18.44242414]
[1758027696739,0.002,4506.9,4506.8,18.74372414]
[1758027697150,0.002,4506.9,4506.8,22.74339654]
[1758027697750,0.002,4506.9,4506.8,26.04549654]
[1758027697905,0.002,4506.9,4506.8,30.59019654]
[1758027698240,0.002,4506.9,4506.8,31.03209654]
[1758027702160,0.002,4507.4,4507.3,2.21862312]
[1758027702355,0.002,4507.4,4507.3,10.26332693]
[1758027702560,0.002,4507.4,4507.3,11.30122693]
[1758027702882,0.002,4507.4,4507.3,25.50652693]
[1758027703061,0.002,4507.4,4507.3,30.89419933]
[1758027704435,0.002,4507.4,4507.3,30.15759933]
[1758027704650,0.002,4507.4,4507.3,30.89419933]
[1758027707712,0.002,4507.4,4507.3,31.00459933]
[1758027707875,0.002,4507.4,4507.3,31.00539933]
[1758027708070,0.002,4507.4,4507.3,31.47169933]
[1758027709703,0.0012,4507.4,4507.3,30.67969933]
[1758027711828,0.002,4508.7,4507.4,3.792]
[1758027712032,0.002,4508.7,4508.6,4.3009724]
[1758027712228,0.002,4508.7,4508.6,6.5189558]
[1758027712391,0.3081,4508.7,4508.6,21.1293558]
[1758027713029,0.7744,4508.7,4508.6,21.1293558]
[1758027713528,0.002,4508.7,4508.6,26.15421068]
[1758027713930,0.3081,4508.7,4508.6,25.85291068]
[1758027714433,0.002,4508.7,4508.6,26.15421068]
[1758027714625,0.002,4508.7,4508.6,26.89741068]
[1758027714832,0.002,4508.7,4508.6,26.60271068]
[1758027715001,0.002,4508.7,4508.6,26.15421068]
[1758027715399,0.0012,4508.7,4508.6,26.15421068]
[1758027716273,0.0012,4508.7,4508.6,25.85291068]
[1758027716409,1.2053,4508.7,4508.6,21.55193828]
[1758027716609,1.2053,4508.7,4508.6,24.1293558]
[1758027717514,1.2053,4508.7,4508.6,17.6104]
[1758027717944,1.2053,4508.7,4508.6,19.8283834]
[1758027718130,1.2053,4508.7,4508.6,19.8291834]
[1758027718524,1.2053,4508.7,4508.6,24.1301558]
[1758027719349,0.2948,4508.7,4508.6,26.34811461]
[1758027719654,0.0012,4508.7,4508.6,26.64471461]
[1758027721146,0.0012,4508.7,4508.6,11.84811461]
[1758027721359,0.7893,4508.7,4508.6,11.84811461]
[1758027721550,0.0012,4508.7,4508.6,26.64471461]
[1758027723756,0.0012,4508.7,4508.6,26.34811461]
[1758027723956,0.2963,4508.7,4508.6,26.34811461]
[1758027725684,0.0012,4508.7,4508.6,26.34811461]
[1758027726559,0.0012,4508.7,4508.6,26.64471461]
[1758027726788,0.0012,4508.7,4508.6,30.94568701]
[1758027726986,0.0012,4508.7,4508.6,27.36761461]
[1758027727347,0.0012,4508.7,4508.6,26.64471461]
[1758027727582,0.0012,4508.7,4508.6,26.7335726]
[1758027728482,0.0012,4508.7,4508.6,26.4369726]
[1758027729052,0.2963,4508.7,4508.6,26.4369726]
[1758027729344,0.7893,4508.7,4508.6,26.4369726]
[1758027729761,0.2963,4508.7,4508.6,26.4369726]
[1758027730560,0.2963,4508.7,4508.6,30.6869726]
[1758027730768,0.0012,4508.7,4508.6,30.6869726]
[1758027731101,1.2453,4508.7,4508.6,21.95005799]
[1758027731399,1.2453,4508.7,4508.6,7.45005799]
[1758027731598,1.2453,4508.7,4508.6,9.5791834]
[1758027731892,1.2445,4508.7,4508.6,0.1112]
[1758027732042,1.37035,4508.7,4508.6,0.0008]
[1758027732248,3.58828421,4508.7,4508.6,0.0008]
[1758027732650,3.79571372,4508.7,4508.6,0.0008]
[1758027733247,3.58828421,4508.7,4508.6,0.0008]
[1758027735588,3.58828421,4508.7,4508.6,0.0018]
[1758027739650,3.13228421,4508.7,4508.6,0.0018]
[1758027739952,3.58828421,4508.7,4508.6,0.0018]
[1758027740380,0.8989,4508.7,4508.6,0.0018]
[1758027740600,0.8981,4508.7,4508.6,0.0018]
[1758027741208,3.57203421,4508.7,4508.6,0.0018]
[1758027741976,1.3541,4508.7,4508.6,0.0018]
[1758027742808,3.57203421,4508.7,4508.6,0.0018]
[1758027743012,1.3541,4508.7,4508.6,0.0018]
[1758027744250,1.71268947,4508.7,4508.6,0.0018]
[1758027744516,3.93062368,4508.7,4508.6,0.0018]
[1758027744680,7.72262368,4508.7,4508.6,0.0018]
[1758027745013,0.792,4508.5,4508.1,0.001]
[1758027745211,6.5191526,4508.2,4508.1,0.001]
[1758027745516,7.72399231,4508.2,4508.1,0.001]
[1758027745731,9.47939231,4508.2,4508.1,0.001]
[1758027746040,5.17841991,4508.2,4508.1,0.001]
[1758027747139,8.50975269,4508.2,4508.1,0.001]
[1758027747290,8.98689553,4508.2,4508.1,0.001]
[1758027748294,8.50975269,4508.2,4508.1,0.001]
[1758027748823,8.38532016,4508.2,4508.1,0.001]
[1758027749421,8.17841991,4508.2,4508.1,0.001]
[1758027749730,7.38641991,4508.2,4508.1,0.001]
[1758027755040,7.38641991,4508.2,4508.1,0.0018]
[1758027755401,4.38641991,4508.2,4508.1,0.0018]
[1758027757648,3.42301991,4508.2,4508.1,0.0018]
[1758027757850,0.36058947,4508.7,4508.1,0.3044]
[1758027758028,0.1104,4508.4,4508.1,0.6009]
[1758027758224,0.1104,4508.4,4508.2,0.7513]
[1758027758630,0.1104,4508.4,4508.3,0.3026]
[1758027759029,0.4208,4508.4,4508.1,0.0018]
[1758027759324,0.9206,4508.4,4508.1,0.0018]
[1758027759512,0.1104,4508.4,4508.1,0.0018]
[1758027760756,0.1104,4508.4,4508.3,0.3026]
[1758027761133,0.1104,4508.4,4508.1,0.0018]
[1758027761312,2.32849486,4508.4,4508.1,0.0018]
[1758027761754,0.1104,4508.4,4508.1,0.0018]
[1758027761933,0.6102,4508.4,4508.1,0.0018]
[1758027762346,0.1104,4508.4,4508.1,0.0018]
[1758027762952,2.32852916,4508.4,4508.1,0.0018]
[1758027763174,0.3104,4508.2,4508.1,0.0018]
[1758027763474,0.4998,4508.3,4508.1,0.0018]
[1758027763673,0.1104,4508.4,4508.1,0.0018]
[1758027764258,2.32849088,4508.4,4508.1,0.0018]
[1758027764453,0.1104,4508.4,4508.1,0.0018]
[1758027765165,0.3104,4508.2,4508.1,0.0018]
[1758027765468,2.32848989,4508.4,4508.1,0.0018]
[1758027765668,0.61160908,4508.4,4508.1,0.3044]
[1758027765856,0.61080908,4508.4,4508.1,0.3044]
[1758027766061,0.1096,4508.4,4508.1,0.3044]
[1758027766263,2.32768274,4508.4,4508.1,0.3044]
[1758027766439,0.1096,4508.4,4508.1,1.0557]
[1758027766841,0.1096,4508.4,4508.1,0.3044]
[1758027770591,0.1096,4508.4,4508.2,0.2965]
[1758027770788,0.1124,4508.7,4508.2,0.7513]
[1758027770988,0.1124,4508.7,4508.6,0.3026]
[1758027771361,0.1124,4508.7,4508.6,0.5991]
[1758027771708,0.1124,4508.7,4508.6,1.0539]
[1758027772916,0.1124,4508.7,4508.6,0.3026]
[1758027773059,0.002,4508.7,4508.6,1.0539]
[1758027773259,0.002,4508.7,4508.6,1.90808919]
[1758027773899,0.002,4508.7,4508.6,4.12607259]
[1758027774094,0.002,4508.7,4508.6,18.62607259]
[1758027774419,0.002,4508.7,4508.6,16.40808919]
[1758027776273,0.002,4508.7,4508.6,15.65678919]
[1758027776823,0.002,4508.7,4508.6,14.8026]
[1758027777765,0.002,4508.7,4508.6,15.2405]
[1758027777982,0.002,4508.7,4508.6,17.7549834]
[1758027779565,0.002,4508.7,4508.6,20.8653834]
[1758027780475,0.002,4508.7,4508.6,20.95424277]
[1758027780699,0.002,4508.7,4508.6,23.17220158]
[1758027781070,0.002,4508.7,4508.6,23.17300158]
[1758027781272,0.002,4508.7,4508.6,23.08414221]
[1758027781698,0.002,4508.7,4508.6,22.78764221]
[1758027782803,0.002,4508.7,4508.6,23.08414221]
[1758027788641,0.002,4508.7,4508.6,23.17300158]
[1758027790919,0.0012,4508.7,4508.6,23.17300158]
[1758027792200,0.0012,4508.7,4508.6,22.43860158]
[1758027793738,0.0012,4508.7,4508.6,23.19950158]
[1758027795712,0.0012,4508.7,4508.6,22.43860158]
[1758027796546,0.0012,4508.7,4508.6,23.19950158]
[1758027797957,0.0012,4508.7,4508.6,22.13600158]
[1758027799446,0.0012,4508.7,4508.6,22.43840158]
[1758027802511,0.0004,4508.7,4508.6,22.43840158]
[1758027803446,0.0004,4508.7,4508.6,22.13600158]
[1758027804010,0.3056,4508.7,4508.6,22.13600158]
[1758027804223,1.1926,4508.7,4508.6,22.04714221]
[1758027804456,1.1926,4508.7,4508.6,19.8291834]
[1758027804663,1.1926,4508.7,4508.6,24.0791834]
[1758027805441,0.7604,4508.7,4508.6,24.0791834]
[1758027805637,0.0004,4508.7,4508.6,24.6818834]
[1758027805853,0.0004,4508.7,4508.6,25.1372834]
[1758027806036,0.0004,4508.7,4508.6,27.35524221]
[1758027806457,0.0004,4508.7,4508.6,26.29714221]
[1758027806762,0.0004,4508.7,4508.6,26.60334221]
[1758027810373,0.0004,4508.7,4508.6,27.35524221]
[1758027811073,0.0004,4508.7,4508.6,26.60334221]
[1758027811482,1.2566,4508.7,4508.6,18.7508]
[1758027811777,1.2566,4508.7,4508.6,0.0008]
[1758027815765,3.47453421,4508.7,4508.6,0.0008]
[1758027816280,3.47373421,4508.7,4508.6,0.0008]
[1758027816640,4.54584568,4508.7,4508.6,0.0008]
[1758027817687,10.35337651,4508.7,4508.6,0.0008]
[1758027818181,5.33784568,4508.7,4508.6,0.0008]
[1758027820643,10.35337651,4508.7,4508.6,0.0008]
[1758027822650,14.16179964,4508.7,4508.6,0.0008]
[1758027823520,14.16145977,4508.7,4508.6,0.0008]
[1758027824450,14.16065977,4508.7,4508.6,0.0008]